[Event "Titled Tuesday Blitz March 21 Early 2023"]
[White "Hirneise, Jens"]
[Black "ArtemDyachuk"]
[WhiteFideId "24614734"]
[WhiteElo "2345"]
[BlackElo "2390"]
[Result "1-0"]
[Round "06"]
[TimeControl "180+2"]
[Date "2023.03.21"]
[WhiteClock "0:01:19"]
[BlackClock "0:00:01"]

1. d4 {[%clk 0:02:59]}  Nf6 {[%clk 0:02:52]} 2. Bf4 {[%clk 0:02:59]}  g6 {[%clk 0:02:49]} 3. e3 {[%clk 0:02:54]}  Bg7 {[%clk 0:02:48]} 4. h3 {[%clk 0:02:52]}  O-O {[%clk 0:02:46]} 5. Nf3 {[%clk 0:02:53]}  d6 {[%clk 0:02:46]} 6. Be2 {[%clk 0:02:49]}  Re8 {[%clk 0:02:46]} 7. Bh2 {[%clk 0:02:49]}  Nfd7 {[%clk 0:02:44]} 8. Nc3 {[%clk 0:02:47]}  c5 {[%clk 0:02:18]} 9. O-O {[%clk 0:02:42]}  cxd4 {[%clk 0:01:58]} 10. exd4 {[%clk 0:02:38]}  Nc6 {[%clk 0:01:55]} 11. Re1 {[%clk 0:02:38]}  Qb6 {[%clk 0:01:49]} 12. Nd5 {[%clk 0:02:32]}  Qa5 {[%clk 0:01:37]} 13. Bc4 {[%clk 0:02:23]}  e6 {[%clk 0:01:32]} 14. Ne3 {[%clk 0:02:17]}  Nb6 {[%clk 0:01:15]} 15. Bb3 {[%clk 0:02:12]}  d5 {[%clk 0:01:08]} 16. Ng4 {[%clk 0:02:06]}  Na4 {[%clk 0:00:53]} 17. Rb1 {[%clk 0:01:54]}  b5 {[%clk 0:00:42]} 18. c3 {[%clk 0:01:51]}  Nb6 {[%clk 0:00:38]} 19. Nfe5 {[%clk 0:01:52]}  Ne7 {[%clk 0:00:35]} 20. Qd2 {[%clk 0:01:46]}  Nf5 {[%clk 0:00:19]} 21. Bc2 {[%clk 0:01:42]}  f6 {[%clk 0:00:04]} 22. Nc6 {[%clk 0:01:27]}  Qa6 {[%clk 0:00:03]} 23. Bxf5 {[%clk 0:01:28]}  gxf5 {[%clk 0:00:02]} 24. Nh6+ {[%clk 0:01:29]}  Kh8 {[%clk 0:00:01]} 25. Nf7+ {[%clk 0:01:19]} 1-0


[Site "https://www.chess.com"]

[Event "Titled Tuesday Blitz March 21 Early 2023"]
[White "Sonnenschein, Philipp"]
[Black "Fule, Simon"]
[WhiteFideId "16250877"]
[BlackFideId "787515"]
[WhiteElo "2224"]
[BlackElo "2380"]
[Result "1-0"]
[Round "06"]
[TimeControl "180+2"]
[Date "2023.03.21"]
[WhiteClock "0:00:31"]
[BlackClock "0:00:01"]

1. d4 {[%clk 0:03:00]}  Nf6 {[%clk 0:02:59]} 2. c4 {[%clk 0:03:00]}  d6 {[%clk 0:02:59]} 3. Nf3 {[%clk 0:03:00]}  g6 {[%clk 0:02:59]} 4. g3 {[%clk 0:03:00]}  Bg7 {[%clk 0:03:00]} 5. Bg2 {[%clk 0:03:00]}  O-O {[%clk 0:03:00]} 6. O-O {[%clk 0:03:00]}  Nc6 {[%clk 0:03:00]} 7. Nc3 {[%clk 0:03:00]}  e5 {[%clk 0:03:01]} 8. dxe5 {[%clk 0:02:59]}  dxe5 {[%clk 0:03:02]} 9. Qxd8 {[%clk 0:02:54]}  Rxd8 {[%clk 0:03:03]} 10. Bg5 {[%clk 0:02:54]}  Be6 {[%clk 0:03:01]} 11. b3 {[%clk 0:02:46]}  h6 {[%clk 0:02:58]} 12. Be3 {[%clk 0:02:42]}  e4 {[%clk 0:02:53]} 13. Nd2 {[%clk 0:02:36]}  Ng4 {[%clk 0:02:47]} 14. Ncxe4 {[%clk 0:02:04]}  Nxe3 {[%clk 0:02:40]} 15. fxe3 {[%clk 0:02:05]}  Bxa1 {[%clk 0:02:35]} 16. Rxa1 {[%clk 0:02:04]}  f5 {[%clk 0:02:35]} 17. Nc5 {[%clk 0:02:03]}  Rxd2 {[%clk 0:02:30]} 18. Nxe6 {[%clk 0:02:03]}  Rxe2 {[%clk 0:02:29]} 19. Nxc7 {[%clk 0:02:00]}  Rd8 {[%clk 0:02:07]} 20. Nd5 {[%clk 0:01:59]}  Kf7 {[%clk 0:02:00]} 21. Bf3 {[%clk 0:01:32]}  Rd2 {[%clk 0:01:58]} 22. h3 {[%clk 0:01:27]}  b6 {[%clk 0:01:50]} 23. Kf1 {[%clk 0:01:21]}  Ne5 {[%clk 0:01:25]} 24. Be2 {[%clk 0:01:21]}  Nd7 {[%clk 0:00:54]} 25. Ke1 {[%clk 0:01:18]}  Rb2 {[%clk 0:00:53]} 26. Nc3 {[%clk 0:01:09]}  Nc5 {[%clk 0:00:48]} 27. g4 {[%clk 0:01:01]}  Kf6 {[%clk 0:00:31]} 28. Rd1 {[%clk 0:00:57]}  Rxd1+ {[%clk 0:00:30]} 29. Kxd1 {[%clk 0:00:57]}  fxg4 {[%clk 0:00:25]} 30. hxg4 {[%clk 0:00:58]}  Nxb3 {[%clk 0:00:14]} 31. axb3 {[%clk 0:00:56]}  Rxb3 {[%clk 0:00:15]} 32. Kc2 {[%clk 0:00:55]}  Ra3 {[%clk 0:00:14]} 33. Kb2 {[%clk 0:00:54]}  Ra5 {[%clk 0:00:14]} 34. Nd5+ {[%clk 0:00:50]}  Ke5 {[%clk 0:00:13]} 35. Bf3 {[%clk 0:00:50]}  Rc5 {[%clk 0:00:11]} 36. Be2 {[%clk 0:00:42]}  Ke4 {[%clk 0:00:09]} 37. Kb3 {[%clk 0:00:41]}  a5 {[%clk 0:00:07]} 38. Bd1 {[%clk 0:00:37]}  b5 {[%clk 0:00:06]} 39. Bc2+ {[%clk 0:00:34]}  Kf3 {[%clk 0:00:05]} 40. Nb6 {[%clk 0:00:31]}  Kxe3 {[%clk 0:00:03]} 41. Bxg6 {[%clk 0:00:30]}  bxc4+ {[%clk 0:00:01]} 42. Nxc4+ {[%clk 0:00:31]} 1-0


[Site "https://www.chess.com"]

[Event "Titled Tuesday Blitz March 21 Early 2023"]
[White "Horak, Martin"]
[Black "Mirzanurov, Bulat"]
[WhiteFideId "367095"]
[BlackFideId "4184521"]
[WhiteElo "2091"]
[BlackElo "2019"]
[Result "1-0"]
[Round "06"]
[TimeControl "180+2"]
[Date "2023.03.21"]
[WhiteClock "0:00:03"]
[BlackClock "0:00:14"]

1. d4 {[%clk 0:03:00]}  d5 {[%clk 0:02:59]} 2. c4 {[%clk 0:02:59]}  e6 {[%clk 0:02:58]} 3. Nf3 {[%clk 0:02:59]}  Nf6 {[%clk 0:02:57]} 4. Nc3 {[%clk 0:03:00]}  c6 {[%clk 0:02:57]} 5. e3 {[%clk 0:02:54]}  Nbd7 {[%clk 0:02:54]} 6. b3 {[%clk 0:02:54]}  Be7 {[%clk 0:02:51]} 7. Bb2 {[%clk 0:02:53]}  O-O {[%clk 0:02:50]} 8. Be2 {[%clk 0:02:48]}  a6 {[%clk 0:02:42]} 9. O-O {[%clk 0:02:42]}  dxc4 {[%clk 0:02:40]} 10. Bxc4 {[%clk 0:02:41]}  b5 {[%clk 0:02:39]} 11. Bd3 {[%clk 0:02:21]}  Bb7 {[%clk 0:02:38]} 12. Rc1 {[%clk 0:02:21]}  c5 {[%clk 0:02:37]} 13. Ne5 {[%clk 0:02:04]}  cxd4 {[%clk 0:02:30]} 14. exd4 {[%clk 0:02:04]}  Nb6 {[%clk 0:02:28]} 15. Bb1 {[%clk 0:01:55]}  Nbd5 {[%clk 0:02:23]} 16. Ne4 {[%clk 0:01:40]}  g6 {[%clk 0:02:05]} 17. Re1 {[%clk 0:01:37]}  Re8 {[%clk 0:01:43]} 18. Nc5 {[%clk 0:01:34]}  Bxc5 {[%clk 0:01:40]} 19. dxc5 {[%clk 0:01:22]}  Rc8 {[%clk 0:01:37]} 20. c6 {[%clk 0:01:15]}  Ba8 {[%clk 0:01:32]} 21. Qd4 {[%clk 0:01:10]}  Qd6 {[%clk 0:01:21]} 22. Nd7 {[%clk 0:00:56]}  e5 {[%clk 0:01:13]} 23. Nxf6+ {[%clk 0:00:55]}  Qxf6 {[%clk 0:01:09]} 24. Qxd5 {[%clk 0:00:55]}  Bxc6 {[%clk 0:01:10]} 25. Qd3 {[%clk 0:00:35]}  Qg5 {[%clk 0:01:02]} 26. Qg3 {[%clk 0:00:33]}  Qh5 {[%clk 0:01:00]} 27. Rxe5 {[%clk 0:00:23]}  Rxe5 {[%clk 0:00:58]} 28. Qxe5 {[%clk 0:00:22]}  Qxe5 {[%clk 0:00:57]} 29. Bxe5 {[%clk 0:00:23]}  Re8 {[%clk 0:00:56]} 30. Rxc6 {[%clk 0:00:19]}  Rxe5 {[%clk 0:00:55]} 31. Rc1 {[%clk 0:00:20]}  Re2 {[%clk 0:00:55]} 32. Kf1 {[%clk 0:00:20]}  Rd2 {[%clk 0:00:54]} 33. Ke1 {[%clk 0:00:20]}  Rd6 {[%clk 0:00:54]} 34. Rc2 {[%clk 0:00:15]}  Kg7 {[%clk 0:00:53]} 35. Rd2 {[%clk 0:00:15]}  Rc6 {[%clk 0:00:53]} 36. Kd1 {[%clk 0:00:15]}  Kf6 {[%clk 0:00:51]} 37. Be4 {[%clk 0:00:15]}  Re6 {[%clk 0:00:49]} 38. Bf3 {[%clk 0:00:15]}  g5 {[%clk 0:00:48]} 39. h3 {[%clk 0:00:15]}  Kg6 {[%clk 0:00:46]} 40. Rc2 {[%clk 0:00:15]}  Rd6+ {[%clk 0:00:45]} 41. Kc1 {[%clk 0:00:15]}  Kf5 {[%clk 0:00:42]} 42. Rc5+ {[%clk 0:00:15]}  Kf4 {[%clk 0:00:40]} 43. Rc6 {[%clk 0:00:13]}  Rd7 {[%clk 0:00:32]} 44. Rxa6 {[%clk 0:00:13]}  f5 {[%clk 0:00:29]} 45. Ra5 {[%clk 0:00:08]}  g4 {[%clk 0:00:26]} 46. hxg4 {[%clk 0:00:09]}  fxg4 {[%clk 0:00:27]} 47. Bd1 {[%clk 0:00:09]}  h5 {[%clk 0:00:25]} 48. Rxb5 {[%clk 0:00:09]}  Rh7 {[%clk 0:00:21]} 49. Rb4+ {[%clk 0:00:09]}  Kg5 {[%clk 0:00:21]} 50. g3 {[%clk 0:00:10]}  Rf7 {[%clk 0:00:20]} 51. Rb5+ {[%clk 0:00:06]}  Kh6 {[%clk 0:00:20]} 52. Rc5 {[%clk 0:00:03]}  Rxf2 {[%clk 0:00:20]} 53. a4 {[%clk 0:00:03]}  h4 {[%clk 0:00:19]} 54. gxh4 {[%clk 0:00:03]}  g3 {[%clk 0:00:19]} 55. Rc3 {[%clk 0:00:03]}  g2 {[%clk 0:00:19]} 56. Rg3 {[%clk 0:00:04]}  Ra2 {[%clk 0:00:19]} 57. Kb1 {[%clk 0:00:03]}  Rd2 {[%clk 0:00:18]} 58. Bc2 {[%clk 0:00:02]}  Rf2 {[%clk 0:00:18]} 59. Kb2 {[%clk 0:00:03]}  Kh5 {[%clk 0:00:17]} 60. a5 {[%clk 0:00:03]}  Kxh4 {[%clk 0:00:17]} 61. Rg8 {[%clk 0:00:04]}  Kh3 {[%clk 0:00:15]} 62. a6 {[%clk 0:00:04]}  Kh2 {[%clk 0:00:16]} 63. Rh8+ {[%clk 0:00:05]}  Kg1 {[%clk 0:00:16]} 64. a7 {[%clk 0:00:03]}  Kf1 {[%clk 0:00:16]} 65. Rg8 {[%clk 0:00:03]}  Rf8 {[%clk 0:00:08]} 66. Rxf8+ {[%clk 0:00:02]}  Ke1 {[%clk 0:00:09]} 67. Rg8 {[%clk 0:00:03]}  g1=Q {[%clk 0:00:10]} 68. Rxg1+ {[%clk 0:00:03]}  Kd2 {[%clk 0:00:11]} 69. Rg2+ {[%clk 0:00:04]}  Ke3 {[%clk 0:00:12]} 70. a8=Q {[%clk 0:00:03]}  Kd4 {[%clk 0:00:13]} 71. Qd8+ {[%clk 0:00:03]}  Kc5 {[%clk 0:00:13]} 72. Rg5+ {[%clk 0:00:03]}  Kb4 {[%clk 0:00:14]} 73. Qd4# {[%clk 0:00:03]} 1-0


[Site "https://www.chess.com"]

[Event "Titled Tuesday Blitz March 21 Early 2023"]
[White "Rom, Jasper"]
[Black "Kostiukov, Alexandr"]
[WhiteFideId "2023733"]
[BlackFideId "14108100"]
[WhiteElo "2233"]
[BlackElo "2202"]
[Result "1-0"]
[Round "06"]
[TimeControl "180+2"]
[Date "2023.03.21"]
[WhiteClock "0:01:44"]
[BlackClock "0:00:15"]

1. e4 {[%clk 0:02:55]}  c5 {[%clk 0:02:58]} 2. Nc3 {[%clk 0:02:54]}  g6 {[%clk 0:02:58]} 3. f4 {[%clk 0:02:55]}  Bg7 {[%clk 0:02:59]} 4. Nf3 {[%clk 0:02:55]}  Nc6 {[%clk 0:02:58]} 5. Bb5 {[%clk 0:02:55]}  Nd4 {[%clk 0:02:58]} 6. O-O {[%clk 0:02:56]}  Nxb5 {[%clk 0:02:47]} 7. Nxb5 {[%clk 0:02:56]}  Nf6 {[%clk 0:02:46]} 8. d3 {[%clk 0:02:55]}  O-O {[%clk 0:02:45]} 9. Qe1 {[%clk 0:02:56]}  d5 {[%clk 0:02:38]} 10. Nc3 {[%clk 0:02:55]}  b6 {[%clk 0:02:25]} 11. Qh4 {[%clk 0:02:53]}  dxe4 {[%clk 0:02:14]} 12. dxe4 {[%clk 0:02:53]}  Bb7 {[%clk 0:02:09]} 13. f5 {[%clk 0:02:49]}  gxf5 {[%clk 0:01:52]} 14. Bh6 {[%clk 0:02:47]}  fxe4 {[%clk 0:01:14]} 15. Rad1 {[%clk 0:02:38]}  Qc7 {[%clk 0:01:03]} 16. Ng5 {[%clk 0:02:35]}  Rfd8 {[%clk 0:00:43]} 17. Rde1 {[%clk 0:02:15]}  Rd4 {[%clk 0:00:23]} 18. Bxg7 {[%clk 0:02:12]}  Kxg7 {[%clk 0:00:23]} 19. Rxf6 {[%clk 0:01:45]}  exf6 {[%clk 0:00:15]} 20. Qxh7+ {[%clk 0:01:44]}  Kf8 {[%clk 0:00:15]} 21. Ne6+ {[%clk 0:01:44]} 1-0


[Site "https://www.chess.com"]

[Event "Titled Tuesday Blitz March 21 Early 2023"]
[White "Pham, Le Thao Nguyen"]
[Black "Sovetbekova, Nurai"]
[WhiteFideId "12401226"]
[BlackFideId "13801910"]
[WhiteElo "2282"]
[BlackElo "1857"]
[Result "1-0"]
[Round "06"]
[TimeControl "180+2"]
[Date "2023.03.21"]
[WhiteClock "0:00:23"]
[BlackClock "0:00:04"]

1. d4 {[%clk 0:03:00]}  Nf6 {[%clk 0:02:59]} 2. Nf3 {[%clk 0:02:59]}  g6 {[%clk 0:02:59]} 3. g3 {[%clk 0:02:58]}  Bg7 {[%clk 0:02:59]} 4. Bg2 {[%clk 0:02:59]}  c5 {[%clk 0:02:58]} 5. c3 {[%clk 0:02:57]}  O-O {[%clk 0:02:56]} 6. O-O {[%clk 0:02:56]}  Nc6 {[%clk 0:02:54]} 7. dxc5 {[%clk 0:02:52]}  Ne4 {[%clk 0:02:48]} 8. Be3 {[%clk 0:02:49]}  Na5 {[%clk 0:02:33]} 9. Nbd2 {[%clk 0:02:45]}  Nxd2 {[%clk 0:02:29]} 10. Nxd2 {[%clk 0:02:44]}  Qc7 {[%clk 0:02:27]} 11. Rc1 {[%clk 0:02:25]}  Rd8 {[%clk 0:02:26]} 12. b4 {[%clk 0:02:21]}  Nc6 {[%clk 0:02:25]} 13. Nc4 {[%clk 0:02:16]}  d6 {[%clk 0:02:17]} 14. Bf4 {[%clk 0:02:07]}  Ne5 {[%clk 0:01:59]} 15. Bxe5 {[%clk 0:01:52]}  dxe5 {[%clk 0:01:58]} 16. Qc2 {[%clk 0:01:50]}  Bf5 {[%clk 0:01:57]} 17. e4 {[%clk 0:01:47]}  Be6 {[%clk 0:01:57]} 18. Ne3 {[%clk 0:01:48]}  Rd7 {[%clk 0:01:37]} 19. Nd5 {[%clk 0:01:45]}  Qd8 {[%clk 0:01:36]} 20. Rcd1 {[%clk 0:01:35]}  f5 {[%clk 0:01:29]} 21. Ne3 {[%clk 0:01:21]}  f4 {[%clk 0:01:23]} 22. Nd5 {[%clk 0:01:10]}  Qf8 {[%clk 0:01:02]} 23. Rd3 {[%clk 0:01:02]}  Rad8 {[%clk 0:00:38]} 24. Rfd1 {[%clk 0:01:01]}  Qf7 {[%clk 0:00:36]} 25. h3 {[%clk 0:00:39]}  fxg3 {[%clk 0:00:11]} 26. fxg3 {[%clk 0:00:38]}  Bh6 {[%clk 0:00:11]} 27. Kh2 {[%clk 0:00:36]}  Qg7 {[%clk 0:00:09]} 28. Qa4 {[%clk 0:00:26]}  a6 {[%clk 0:00:07]} 29. c6 {[%clk 0:00:26]}  bxc6 {[%clk 0:00:07]} 30. Qxc6 {[%clk 0:00:27]}  Rd6 {[%clk 0:00:07]} 31. Nxe7+ {[%clk 0:00:25]}  Qxe7 {[%clk 0:00:06]} 32. Rxd6 {[%clk 0:00:26]}  Rxd6 {[%clk 0:00:05]} 33. Qxd6 {[%clk 0:00:27]}  Qf6 {[%clk 0:00:03]} 34. Qd8+ {[%clk 0:00:26]}  Qxd8 {[%clk 0:00:03]} 35. Rxd8+ {[%clk 0:00:27]}  Kf7 {[%clk 0:00:04]} 36. Bf1 {[%clk 0:00:25]}  Bd2 {[%clk 0:00:04]} 37. Rxd2 {[%clk 0:00:23]} 1-0


[Site "https://www.chess.com"]

[Event "Titled Tuesday Blitz March 21 Early 2023"]
[White "Eynullayev, Atilla"]
[Black "Zaichenko, Daria"]
[WhiteFideId "13413570"]
[BlackFideId "4197453"]
[WhiteElo "2181"]
[BlackElo "2039"]
[Result "1-0"]
[Round "06"]
[TimeControl "180+2"]
[Date "2023.03.21"]
[WhiteClock "0:00:09"]
[BlackClock "0:00:01"]

1. d4 {[%clk 0:03:00]}  d5 {[%clk 0:03:00]} 2. c4 {[%clk 0:03:01]}  e6 {[%clk 0:03:00]} 3. Nc3 {[%clk 0:03:01]}  Be7 {[%clk 0:03:00]} 4. cxd5 {[%clk 0:03:01]}  exd5 {[%clk 0:03:00]} 5. Bf4 {[%clk 0:03:02]}  c6 {[%clk 0:03:00]} 6. e3 {[%clk 0:03:02]}  Bf5 {[%clk 0:03:00]} 7. Nge2 {[%clk 0:03:01]}  Nd7 {[%clk 0:02:59]} 8. Ng3 {[%clk 0:03:02]}  Be6 {[%clk 0:02:59]} 9. h4 {[%clk 0:02:56]}  Ngf6 {[%clk 0:02:50]} 10. Bd3 {[%clk 0:02:53]}  h5 {[%clk 0:02:37]} 11. Bf5 {[%clk 0:02:29]}  Bxf5 {[%clk 0:02:34]} 12. Nxf5 {[%clk 0:02:30]}  g6 {[%clk 0:02:26]} 13. Nd6+ {[%clk 0:02:28]}  Bxd6 {[%clk 0:02:26]} 14. Bxd6 {[%clk 0:02:29]}  Nb6 {[%clk 0:02:22]} 15. Bc5 {[%clk 0:02:21]}  Nbd7 {[%clk 0:02:19]} 16. Ba3 {[%clk 0:02:20]}  b5 {[%clk 0:02:14]} 17. Qf3 {[%clk 0:02:08]}  a5 {[%clk 0:02:09]} 18. Bd6 {[%clk 0:02:09]}  Ng4 {[%clk 0:01:51]} 19. e4 {[%clk 0:02:03]}  b4 {[%clk 0:01:36]} 20. exd5 {[%clk 0:01:50]}  f5 {[%clk 0:01:05]} 21. dxc6 {[%clk 0:01:32]}  Nb6 {[%clk 0:00:56]} 22. Nb5 {[%clk 0:01:26]}  Kf7 {[%clk 0:00:53]} 23. O-O-O {[%clk 0:01:19]}  Nf6 {[%clk 0:00:47]} 24. Rhe1 {[%clk 0:01:10]}  Re8 {[%clk 0:00:45]} 25. Qb3+ {[%clk 0:00:48]}  Nfd5 {[%clk 0:00:38]} 26. Re5 {[%clk 0:00:39]}  a4 {[%clk 0:00:35]} 27. Qf3 {[%clk 0:00:37]}  Rxe5 {[%clk 0:00:20]} 28. dxe5 {[%clk 0:00:37]}  Qxh4 {[%clk 0:00:20]} 29. Kb1 {[%clk 0:00:20]}  Qe4+ {[%clk 0:00:18]} 30. Qxe4 {[%clk 0:00:20]}  fxe4 {[%clk 0:00:19]} 31. c7 {[%clk 0:00:18]}  Ke6 {[%clk 0:00:16]} 32. Rc1 {[%clk 0:00:16]}  Nc8 {[%clk 0:00:13]} 33. Rc6 {[%clk 0:00:15]}  Kd7 {[%clk 0:00:11]} 34. Rc4 {[%clk 0:00:13]}  e3 {[%clk 0:00:10]} 35. fxe3 {[%clk 0:00:13]}  Nxe3 {[%clk 0:00:09]} 36. Rd4 {[%clk 0:00:13]}  Nf5 {[%clk 0:00:09]} 37. Rd1 {[%clk 0:00:12]}  Ke6 {[%clk 0:00:09]} 38. Bxb4 {[%clk 0:00:08]}  Ra6 {[%clk 0:00:07]} 39. a3 {[%clk 0:00:08]}  Kxe5 {[%clk 0:00:05]} 40. Re1+ {[%clk 0:00:09]}  Kd5 {[%clk 0:00:04]} 41. Nc3+ {[%clk 0:00:08]}  Kc4 {[%clk 0:00:03]} 42. Re4+ {[%clk 0:00:08]}  Kd3 {[%clk 0:00:02]} 43. Re8 {[%clk 0:00:08]}  Nfd6 {[%clk 0:00:01]} 44. Bxd6 {[%clk 0:00:08]}  Nxd6 {[%clk 0:00:02]} 45. c8=Q {[%clk 0:00:08]}  Nxc8 {[%clk 0:00:01]} 46. Rxc8 {[%clk 0:00:09]} 1-0


[Site "https://www.chess.com"]

[Event "Titled Tuesday Blitz March 21 Early 2023"]
[White "Pniaczek, Marek"]
[Black "Kopczynski, Michal"]
[WhiteFideId "21800421"]
[BlackFideId "1124200"]
[WhiteElo "2138"]
[BlackElo "2212"]
[Result "1-0"]
[Round "06"]
[TimeControl "180+2"]
[Date "2023.03.21"]
[WhiteClock "0:00:05"]
[BlackClock "0:00:03"]

1. e4 {[%clk 0:03:00]}  b6 {[%clk 0:03:00]} 2. d4 {[%clk 0:02:58]}  Bb7 {[%clk 0:03:00]} 3. Bd3 {[%clk 0:02:59]}  e6 {[%clk 0:03:01]} 4. Qe2 {[%clk 0:02:51]}  Nf6 {[%clk 0:03:01]} 5. Nf3 {[%clk 0:02:51]}  d5 {[%clk 0:03:02]} 6. e5 {[%clk 0:02:47]}  Nfd7 {[%clk 0:03:03]} 7. Ng5 {[%clk 0:02:37]}  g6 {[%clk 0:03:00]} 8. Qf3 {[%clk 0:02:31]}  Qe7 {[%clk 0:02:58]} 9. Na3 {[%clk 0:02:25]}  a6 {[%clk 0:02:50]} 10. c3 {[%clk 0:02:22]}  c5 {[%clk 0:02:49]} 11. Bd2 {[%clk 0:02:17]}  Nc6 {[%clk 0:02:49]} 12. Nc2 {[%clk 0:02:15]}  h6 {[%clk 0:02:44]} 13. Nh3 {[%clk 0:02:15]}  O-O-O {[%clk 0:02:40]} 14. b4 {[%clk 0:01:57]}  c4 {[%clk 0:02:40]} 15. Be2 {[%clk 0:01:57]}  f6 {[%clk 0:02:36]} 16. exf6 {[%clk 0:01:53]}  Nxf6 {[%clk 0:02:35]} 17. Nf4 {[%clk 0:01:51]}  Rg8 {[%clk 0:02:29]} 18. Qh3 {[%clk 0:01:48]}  Kb8 {[%clk 0:02:21]} 19. Qxe6 {[%clk 0:01:42]}  Qg7 {[%clk 0:02:13]} 20. Qh3 {[%clk 0:01:25]}  Bc8 {[%clk 0:02:02]} 21. Ne6 {[%clk 0:01:05]}  Bxe6 {[%clk 0:01:23]} 22. Qxe6 {[%clk 0:01:04]}  Bd6 {[%clk 0:01:22]} 23. Ne3 {[%clk 0:01:01]}  Rge8 {[%clk 0:01:16]} 24. Qh3 {[%clk 0:01:00]}  Ne4 {[%clk 0:01:10]} 25. Rd1 {[%clk 0:00:34]}  Ng5 {[%clk 0:00:51]} 26. Qh4 {[%clk 0:00:22]}  Re4 {[%clk 0:00:49]} 27. g4 {[%clk 0:00:21]}  Qe7 {[%clk 0:00:16]} 28. Kf1 {[%clk 0:00:18]}  Bf4 {[%clk 0:00:13]} 29. Ng2 {[%clk 0:00:12]}  Bxd2 {[%clk 0:00:10]} 30. Rxd2 {[%clk 0:00:13]}  h5 {[%clk 0:00:10]} 31. Ne3 {[%clk 0:00:11]}  Rxe3 {[%clk 0:00:09]} 32. fxe3 {[%clk 0:00:11]}  Qxe3 {[%clk 0:00:10]} 33. Qg3+ {[%clk 0:00:08]}  Qxg3 {[%clk 0:00:07]} 34. hxg3 {[%clk 0:00:09]}  Ne4 {[%clk 0:00:08]} 35. Rd1 {[%clk 0:00:08]}  Nxg3+ {[%clk 0:00:08]} 36. Kf2 {[%clk 0:00:09]}  Nxh1+ {[%clk 0:00:08]} 37. Rxh1 {[%clk 0:00:08]}  Rf8+ {[%clk 0:00:09]} 38. Ke3 {[%clk 0:00:08]}  Re8+ {[%clk 0:00:08]} 39. Kd2 {[%clk 0:00:08]}  hxg4 {[%clk 0:00:08]} 40. Bxg4 {[%clk 0:00:09]}  Ne7 {[%clk 0:00:05]} 41. Re1 {[%clk 0:00:09]}  Kc7 {[%clk 0:00:05]} 42. Be6 {[%clk 0:00:09]}  Kd6 {[%clk 0:00:05]} 43. Bf7 {[%clk 0:00:07]}  Rf8 {[%clk 0:00:05]} 44. Re6+ {[%clk 0:00:05]}  Kd7 {[%clk 0:00:05]} 45. Rf6 {[%clk 0:00:04]}  a5 {[%clk 0:00:03]} 46. bxa5 {[%clk 0:00:04]}  bxa5 {[%clk 0:00:04]} 47. Rf3 {[%clk 0:00:02]}  g5 {[%clk 0:00:05]} 48. Bxd5 {[%clk 0:00:02]}  Rxf3 {[%clk 0:00:02]} 49. Bxf3 {[%clk 0:00:03]}  Nf5 {[%clk 0:00:02]} 50. Be2 {[%clk 0:00:03]}  Ke6 {[%clk 0:00:03]} 51. Bxc4+ {[%clk 0:00:03]}  Kf6 {[%clk 0:00:04]} 52. Bd3 {[%clk 0:00:04]}  Ng3 {[%clk 0:00:04]} 53. Ke3 {[%clk 0:00:03]}  g4 {[%clk 0:00:05]} 54. Kf4 {[%clk 0:00:03]}  Nh5+ {[%clk 0:00:05]} 55. Kxg4 {[%clk 0:00:04]}  Ng7 {[%clk 0:00:06]} 56. c4 {[%clk 0:00:04]}  Ne6 {[%clk 0:00:06]} 57. d5 {[%clk 0:00:04]}  Nc5 {[%clk 0:00:07]} 58. Bc2 {[%clk 0:00:04]}  Ke5 {[%clk 0:00:07]} 59. Kf3 {[%clk 0:00:05]}  Kd4 {[%clk 0:00:08]} 60. Bb3 {[%clk 0:00:05]}  a4 {[%clk 0:00:07]} 61. d6 {[%clk 0:00:02]}  axb3 {[%clk 0:00:07]} 62. axb3 {[%clk 0:00:03]}  Kc3 {[%clk 0:00:07]} 63. Ke3 {[%clk 0:00:02]}  Kxb3 {[%clk 0:00:07]} 64. Kd4 {[%clk 0:00:03]}  Nd7 {[%clk 0:00:07]} 65. c5 {[%clk 0:00:03]}  Kb4 {[%clk 0:00:07]} 66. c6 {[%clk 0:00:04]}  Nb6 {[%clk 0:00:08]} 67. d7 {[%clk 0:00:03]}  Na4 {[%clk 0:00:03]} 68. d8=Q {[%clk 0:00:03]}  Nc3 {[%clk 0:00:04]} 69. Qb6+ {[%clk 0:00:03]}  Nb5+ {[%clk 0:00:03]} 70. Kd5 {[%clk 0:00:03]}  Ka4 {[%clk 0:00:03]} 71. Qxb5+ {[%clk 0:00:04]}  Kxb5 {[%clk 0:00:03]} 72. c7 {[%clk 0:00:05]} 1-0


[Site "https://www.chess.com"]

[Event "Titled Tuesday Blitz March 21 Early 2023"]
[White "Khandelwal, Ankush"]
[Black "Adithya A Chullikkad"]
[WhiteFideId "413470"]
[BlackFideId "45078734"]
[WhiteElo "2263"]
[BlackElo "1984"]
[Result "1-0"]
[Round "06"]
[TimeControl "180+2"]
[Date "2023.03.21"]
[WhiteClock "0:00:27"]
[BlackClock "0:00:15"]

1. e4 {[%clk 0:03:00]}  c5 {[%clk 0:03:00]} 2. Nf3 {[%clk 0:02:59]}  d6 {[%clk 0:02:57]} 3. d4 {[%clk 0:02:56]}  cxd4 {[%clk 0:02:57]} 4. Nxd4 {[%clk 0:02:57]}  Nf6 {[%clk 0:02:56]} 5. Nc3 {[%clk 0:02:56]}  a6 {[%clk 0:02:56]} 6. Be2 {[%clk 0:02:50]}  e5 {[%clk 0:02:54]} 7. Nb3 {[%clk 0:02:48]}  Be6 {[%clk 0:02:54]} 8. f4 {[%clk 0:02:44]}  Be7 {[%clk 0:02:52]} 9. f5 {[%clk 0:02:39]}  Bd7 {[%clk 0:02:50]} 10. Bg5 {[%clk 0:02:32]}  Bc6 {[%clk 0:02:49]} 11. Bxf6 {[%clk 0:02:31]}  Bxf6 {[%clk 0:02:50]} 12. Qd3 {[%clk 0:02:28]}  Nd7 {[%clk 0:02:48]} 13. Qxd6 {[%clk 0:02:12]}  Qb6 {[%clk 0:02:38]} 14. Qd3 {[%clk 0:02:02]}  O-O-O {[%clk 0:02:37]} 15. O-O-O {[%clk 0:02:01]}  Nc5 {[%clk 0:02:28]} 16. Qc4 {[%clk 0:01:59]}  Nxb3+ {[%clk 0:02:26]} 17. axb3 {[%clk 0:01:58]}  Kb8 {[%clk 0:02:19]} 18. Qxf7 {[%clk 0:01:51]}  Bxe4 {[%clk 0:02:11]} 19. Nxe4 {[%clk 0:01:48]}  Qe3+ {[%clk 0:02:11]} 20. Kb1 {[%clk 0:01:47]}  Qxe4 {[%clk 0:02:00]} 21. Bf3 {[%clk 0:01:45]}  Qb4 {[%clk 0:02:00]} 22. Bd5 {[%clk 0:01:36]}  Rhf8 {[%clk 0:01:53]} 23. Qh5 {[%clk 0:01:34]}  e4 {[%clk 0:01:39]} 24. Qe2 {[%clk 0:01:26]}  Rfe8 {[%clk 0:01:32]} 25. Be6 {[%clk 0:01:16]}  Rd4 {[%clk 0:01:20]} 26. c3 {[%clk 0:01:13]}  Rxd1+ {[%clk 0:01:20]} 27. Rxd1 {[%clk 0:01:14]}  Qe7 {[%clk 0:00:58]} 28. Qxe4 {[%clk 0:01:12]}  Rd8 {[%clk 0:00:58]} 29. Qf4+ {[%clk 0:00:54]}  Ka8 {[%clk 0:00:53]} 30. Rxd8+ {[%clk 0:00:54]}  Qxd8 {[%clk 0:00:53]} 31. Kc2 {[%clk 0:00:53]}  Qb6 {[%clk 0:00:39]} 32. b4 {[%clk 0:00:44]}  Qg1 {[%clk 0:00:36]} 33. Bd5 {[%clk 0:00:38]}  Qb6 {[%clk 0:00:36]} 34. Kb3 {[%clk 0:00:35]}  Qd8 {[%clk 0:00:30]} 35. Qe4 {[%clk 0:00:33]}  Qc7 {[%clk 0:00:28]} 36. Qe6 {[%clk 0:00:32]}  h6 {[%clk 0:00:23]} 37. Qxa6+ {[%clk 0:00:32]}  Kb8 {[%clk 0:00:24]} 38. Qb5 {[%clk 0:00:29]}  b6 {[%clk 0:00:16]} 39. Qa6 {[%clk 0:00:27]}  Qd6 {[%clk 0:00:15]} 40. Qb7# {[%clk 0:00:27]} 1-0


[Site "https://www.chess.com"]